[Event "Régional Jeunes Occitanie 2024"]
[Site "L'Isle Jourdain, France"]
[Date "2024.02.20"]
[Round "1.2"]
[White "DEPRET, Gabriel"]
[Black "MORENO-CHABOT, Clement"]
[Result "0-1"]
[TimeControl "1h30 + 30s/cps"]
[WhiteElo "1199"]
[BlackElo "1771"]

1. d4 {[%clk 01:30:54]} {[%emt 00:00:05]} d5 {[%clk 01:30:03]} {[%emt
00:00:58]} 2. Nc3 {[%clk 01:29:30]} {[%emt 00:01:53]} c6 {[%clk 01:28:42]}
{[%emt 00:01:51]} 3. Bf4 {[%clk 01:28:47]} {[%emt 00:01:11]} Nf6 {[%clk
01:28:50]} {[%emt 00:00:24]} 4. Nf3 {[%clk 01:28:55]} {[%emt 00:00:21]} g6
{[%clk 01:26:01]} {[%emt 00:03:20]} 5. e3 {[%clk 01:25:55]} {[%emt 00:03:30]}
Bg7 {[%clk 01:26:16]} {[%emt 00:00:15]} 6. Bd3 {[%clk 01:25:49]} {[%emt
00:10:27]} Nbd7 {[%clk 01:24:12]} 7. O-O {[%clk 01:25:48]} O-O {[%clk
01:24:13]} 8. e4 {[%clk 01:21:39]} dxe4 {[%clk 01:18:03]} {[%emt 00:05:03]} 9.
Nxe4 {[%clk 01:21:13]} {[%emt 00:00:55]} Nxe4 {[%clk 01:18:22]} {[%emt
00:00:12]} 10. Bxe4 {[%clk 01:21:33]} {[%emt 00:00:09]} Nf6 {[%clk 01:18:48]}
{[%emt 00:00:05]} 11. Bd3 {[%clk 01:20:07]} {[%emt 00:01:55]} Qb6 {[%clk
01:16:06]} {[%emt 00:03:12]} 12. b3 {[%clk 01:18:58]} {[%emt 00:01:38]} Nd5
{[%clk 01:10:34]} {[%emt 00:09:40]} 13. Be3 {[%clk 01:15:24]} {[%emt 00:00:25]}
Bg4 {[%clk 01:04:00]} {[%emt 00:07:05]} 14. Bc4 {[%clk 01:03:30]} {[%emt
00:12:25]} Rad8 {[%clk 00:57:47]} {[%emt 00:07:28]} 15. Bxd5 {[%clk 00:57:13]}
{[%emt 00:06:02]} Rxd5 {[%clk 00:57:45]} {[%emt 00:00:31]} 16. c4 {[%clk
00:57:21]} {[%emt 00:00:21]} Rdd8 {[%clk 00:57:48]} {[%emt 00:00:28]} 17. d5
{[%clk 00:57:39]} {[%emt 00:00:12]} Qa6 {[%clk 00:57:42]} {[%emt 00:00:36]} 18.
Bd4 {[%clk 00:56:35]} {[%emt 00:01:33]} Bxf3 {[%clk 00:57:30]} {[%emt
00:00:43]} 19. gxf3 {[%clk 00:56:41]} {[%emt 00:00:25]} Bxd4 {[%clk 00:56:28]}
{[%emt 00:01:31]} 20. Qxd4 {[%clk 00:56:36]} {[%emt 00:10:06]} cxd5 {[%clk
00:56:50]} 21. c5 {[%clk 00:56:17]} e6 {[%clk 00:46:46]} {[%emt 00:02:00]} 22.
a4 {[%clk 00:46:33]} {[%emt 00:10:14]} Qe2 {[%clk 00:45:29]} {[%emt 00:13:36]}
23. Qe3 {[%clk 00:45:20]} Qc2 {[%clk 00:42:16]} 24. Rfc1 {[%clk 00:45:16]} Qf5
{[%clk 00:42:39]} 25. Kg2 {[%clk 00:40:53]} h5 {[%clk 00:38:46]} {[%emt
00:08:55]} 26. h4 {[%clk 00:39:46]} e5 {[%clk 00:34:28]} {[%emt 00:01:05]} 27.
Qg5 {[%clk 00:39:53]} {[%emt 00:00:23]} Qe6 {[%clk 00:32:34]} {[%emt 00:02:24]}
28. b4 {[%clk 00:39:45]} {[%emt 00:00:38]} Kg7 {[%clk 00:32:40]} {[%emt
00:00:24]} 29. b5 {[%clk 00:39:54]} {[%emt 00:00:22]} f6 {[%clk 00:32:50]}
{[%emt 00:00:20]} 30. Qg3 {[%clk 00:40:17]} {[%emt 00:00:07]} Rc8 {[%clk
00:32:58]} {[%emt 00:00:21]} 31. Qh3 {[%clk 00:39:20]} {[%emt 00:01:26]} f5
{[%clk 00:32:53]} {[%emt 00:00:35]} 32. f4 {[%clk 00:39:15]} {[%emt 00:00:35]}
d4 {[%clk 00:27:47]} {[%emt 00:05:37]} 33. a5 {[%clk 00:37:27]} {[%emt
00:02:18]} Qd5+ {[%clk 00:27:54]} {[%emt 00:00:23]} 34. Kh2 {[%clk 00:37:10]}
{[%emt 00:00:47]} Rxc5 {[%clk 00:27:55]} {[%emt 00:00:29]} 35. Rxc5 {[%clk
00:37:21]} {[%emt 00:00:19]} Qxc5 {[%clk 00:28:18]} {[%emt 00:00:07]} 36. b6
{[%clk 00:36:56]} {[%emt 00:00:55]} axb6 {[%clk 00:28:20]} {[%emt 00:00:28]} 37.
axb6 {[%clk 00:37:19]} {[%emt 00:00:07]} e4 {[%clk 00:26:52]} {[%emt 00:01:59]}
38. Qb3 {[%clk 00:37:16]} {[%emt 00:00:32]} Rf7 {[%clk 00:22:41]} {[%emt
00:04:42]} 39. Ra4 {[%clk 00:35:55]} {[%emt 00:01:51]} Rd7 {[%clk 00:18:36]}
{[%emt 00:04:35]} 40. Rc4 {[%clk 00:36:10]} {[%emt 00:00:15]} Qd5 {[%clk
00:18:36]} {[%emt 00:00:30]} 41. Qc2 {[%clk 00:36:30]} {[%emt 00:00:09]} Kf7
{[%clk 00:14:41]} {[%emt 00:04:25]} 42. Rc7 {[%clk 00:36:46]} {[%emt 00:00:14]}
Ke7 {[%clk 00:14:26]} {[%emt 00:00:45]} 43. Qc5+ {[%clk 00:36:59]} {[%emt
00:00:17]} Qxc5 {[%clk 00:14:46]} {[%emt 00:00:10]} 44. Rxc5 {[%clk 00:37:23]}
{[%emt 00:00:06]} d3 {[%clk 00:15:08]} {[%emt 00:00:09]} 45. Rc1 {[%clk
00:37:41]} {[%emt 00:00:10]} d2 {[%clk 00:15:25]} {[%emt 00:00:15]} 46. Rd1
{[%clk 00:38:07]} {[%emt 00:00:04]} Rd3 {[%clk 00:15:34]} {[%emt 00:00:21]} 47.
Kg2 {[%clk 00:37:57]} {[%emt 00:00:39]} Kd6 {[%clk 00:16:00]} {[%emt 00:00:05]}
48. Kf1 {[%clk 00:38:08]} {[%emt 00:00:20]} Kc5 {[%clk 00:16:22]} {[%emt
00:00:08]} 49. Ke2 {[%clk 00:38:28]} {[%emt 00:00:09]} Kxb6 {[%clk 00:16:49]}
{[%emt 00:00:04]} 50. Rg1 {[%clk 00:38:34]} {[%emt 00:00:24]} d1=Q+ {[%clk
00:17:08]} {[%emt 00:00:11]} 51. Rxd1 {[%clk 00:38:48]} {[%emt 00:00:15]} Rxd1
{[%clk 00:17:37]} {[%emt 00:00:01]} 52. Kxd1 {[%clk 00:39:08]} {[%emt
00:00:10]} Kc5 {[%clk 00:18:06]} {[%emt 00:00:01]} 53. Ke2 {[%clk 00:39:25]}
{[%emt 00:00:12]} Kc4 {[%clk 00:18:30]} {[%emt 00:00:06]} 54. Kd2 {[%clk
00:39:30]} {[%emt 00:00:25]} Kb3 {[%clk 00:18:49]} {[%emt 00:00:11]} 55. Kc1
{[%clk 00:39:43]} {[%emt 00:00:16]} b5 {[%clk 00:19:17]} {[%emt 00:00:03]} 56.
Kb1 {[%clk 00:39:56]} {[%emt 00:00:17]} b4 {[%clk 00:19:45]} {[%emt 00:00:02]}
57. Ka1 {[%clk 00:39:57]} {[%emt 00:00:29]} Kc2 {[%clk 00:20:09]} {[%emt
00:00:06]} 58. Ka2 {[%clk 00:40:08]} {[%emt 00:00:19]} b3+ {[%clk 00:20:37]}
{[%emt 00:00:01]} 59. Ka3 {[%clk 00:40:20]} {[%emt 00:00:19]} b2 {[%clk
00:21:03]} {[%emt 00:00:04]} 60. Kb4 {[%clk 00:40:46]} {[%emt 00:00:05]} b1=Q+
{[%clk 00:21:27]} {[%emt 00:00:05]} 61. Kc4 {[%clk 00:41:06]} {[%emt 00:00:09]}
Qd1 {[%clk 00:21:50]} {[%emt 00:00:08]} 62. Kb4 {[%clk 00:40:59]} {[%emt
00:00:37]} Qd4+ {[%clk 00:22:14]} {[%emt 00:00:06]} 63. Ka3 {[%clk 00:41:15]}
{[%emt 00:00:14]} Qb6 {[%clk 00:22:40]} {[%emt 00:00:05]} 64. Ka4 {[%clk
00:41:38]} {[%emt 00:00:06]} Kc3 {[%clk 00:23:07]} {[%emt 00:00:03]} 65. Ka3
{[%clk 00:42:01]} {[%emt 00:00:07]} Qb3# {[%clk 00:23:34]} {[%emt 00:00:03]}
0-1

[Event "Régional Jeunes Occitanie 2024"]
[Site "L'Isle Jourdain, France"]
[Date "2024.02.20"]
[Round "1.5"]
[White "DUCOS, Antonios"]
[Black "DECAUX, Dragan"]
[Result "1-0"]
[TimeControl "1h30 + 30s/cps"]
[WhiteElo "1544"]
[BlackElo "1199"]

1. d4 {[%clk 01:30:56]} {[%emt 00:00:02]} d5 {[%clk 01:30:00]} {[%emt
00:01:02]} 2. Bf4 {[%clk 01:31:07]} {[%emt 00:00:19]} Nc6 {[%clk 01:29:51]}
{[%emt 00:00:39]} 3. Nf3 {[%clk 01:31:15]} {[%emt 00:00:20]} Nf6 {[%clk
01:29:29]} {[%emt 00:00:54]} 4. e3 {[%clk 01:31:00]} {[%emt 00:00:45]} e6
{[%clk 01:28:10]} {[%emt 00:01:49]} 5. Nbd2 {[%clk 01:30:45]} {[%emt 00:00:44]}
Bd6 {[%clk 01:28:12]} {[%emt 00:00:29]} 6. Bg3 {[%clk 01:30:16]} {[%emt
00:00:58]} Qe7 {[%clk 01:27:48]} {[%emt 00:00:54]} 7. c3 {[%clk 01:30:03]}
{[%emt 00:00:43]} e5 {[%clk 01:27:30]} {[%emt 00:00:49]} 8. Bb5 {[%clk
01:25:29]} {[%emt 00:13:49]} Bg4 {[%clk 01:25:04]} 9. dxe5 {[%clk 01:22:40]}
Bxf3 {[%clk 01:23:11]} 10. Nxf3 {[%clk 01:22:23]} {[%emt 00:00:39]} Bxe5 {[%clk
01:19:39]} {[%emt 00:04:03]} 11. Nxe5 {[%clk 01:22:27]} {[%emt 00:00:25]} Qe6
{[%clk 01:18:42]} {[%emt 00:01:27]} 12. Qa4 {[%clk 01:21:15]} {[%emt 00:01:42]}
O-O {[%clk 01:17:37]} {[%emt 00:01:34]} 13. Bxc6 {[%clk 01:20:20]} {[%emt
00:01:26]} bxc6 {[%clk 01:18:04]} {[%emt 00:00:03]} 14. Qxc6 {[%clk 01:20:07]}
{[%emt 00:00:43]} Qe7 {[%clk 01:16:21]} {[%emt 00:02:13]} 15. O-O {[%clk
01:19:38]} {[%emt 00:08:35]} Rad8 {[%clk 01:14:33]} 16. Nd3 {[%clk 01:18:28]}
Rc8 {[%clk 01:13:53]} 17. Nb4 {[%clk 01:18:04]} Rfd8 {[%clk 01:12:52]} 18. Rad1
{[%clk 01:17:32]} {[%emt 00:00:59]} Ne4 {[%clk 01:11:10]} {[%emt 00:02:14]} 19.
Nxd5 {[%clk 01:13:10]} {[%emt 00:04:51]} Rxd5 {[%clk 01:07:32]} {[%emt
00:04:09]} 20. Qxd5 {[%clk 01:12:27]} {[%emt 00:01:13]} Nxg3 {[%clk 01:07:07]}
{[%emt 00:00:54]} 21. hxg3 {[%clk 01:12:07]} {[%emt 00:00:51]} c6 {[%clk
01:06:54]} {[%emt 00:00:44]} 22. Qd7 {[%clk 01:12:11]} {[%emt 00:00:25]} Qf8
{[%clk 01:06:06]} {[%emt 00:01:19]} 23. Rd6 {[%clk 01:12:17]} {[%emt 00:00:23]}
h6 {[%clk 01:05:44]} {[%emt 00:00:53]} 24. Rfd1 {[%clk 01:12:13]} {[%emt
00:00:34]} Kh7 {[%clk 01:05:45]} {[%emt 00:00:28]} 25. Rxc6 {[%clk 01:12:16]}
{[%emt 00:00:28]} Re8 {[%clk 01:05:11]} {[%emt 00:01:04]} 26. Rc7 {[%clk
01:11:26]} {[%emt 00:01:19]} Kg8 {[%clk 01:03:51]} {[%emt 00:01:51]} 27. Rxa7
{[%emt 00:00:14]} g6 {[%clk 01:02:20]} {[%emt 00:02:32]} 28. Qd4 {[%clk
01:11:30]} {[%emt 00:00:10]} f6 {[%clk 01:02:00]} {[%emt 00:00:51]} 29. Qd7
{[%clk 01:11:33]} {[%emt 00:02:11]} 1-0

[Event "Régional Jeunes Occitanie 2024"]
[Site "L'Isle Jourdain, France"]
[Date "2024.02.20"]
[Round "1.4"]
[White "PERROUIN, Alexian"]
[Black "FUCHS, Louison"]
[Result "1-0"]
[TimeControl "1h30 + 30s/cps"]
[WhiteElo "1829"]
[BlackElo "1285"]

1. e4 {[%clk 01:30:58]} {[%emt 00:00:02]} e5 {[%clk 01:30:54]} {[%emt
00:00:07]} 2. Nf3 {[%clk 01:31:25]} {[%emt 00:00:03]} Nc6 {[%clk 01:31:16]}
{[%emt 00:00:08]} 3. Bb5 {[%clk 01:31:51]} {[%emt 00:00:03]} a6 {[%clk
01:31:22]} {[%emt 00:00:25]} 4. Ba4 {[%clk 01:32:17]} {[%emt 00:00:04]} Nf6
{[%clk 01:29:57]} {[%emt 00:01:55]} 5. O-O {[%clk 01:32:40]} {[%emt 00:00:06]}
b5 {[%clk 01:27:55]} {[%emt 00:02:32]} 6. Bb3 {[%clk 01:33:04]} {[%emt
00:00:06]} Bc5 {[%clk 01:26:51]} {[%emt 00:01:34]} 7. c3 {[%clk 01:32:41]}
{[%emt 00:00:53]} d5 {[%clk 01:19:28]} {[%emt 00:16:19]} 8. exd5 {[%clk
01:31:59]} Nxd5 {[%clk 01:18:58]} 9. Nxe5 {[%clk 01:23:17]} {[%emt 00:02:58]}
Nxe5 {[%clk 01:06:01]} {[%emt 00:19:50]} 10. d4 {[%clk 01:23:37]} Bb6 {[%clk
01:04:43]} 11. dxe5 {[%clk 01:20:31]} Bb7 {[%clk 01:03:03]} {[%emt 00:01:20]}
12. Qg4 {[%clk 01:18:44]} {[%emt 00:02:17]} g6 {[%clk 00:55:38]} {[%emt
00:07:55]} 13. Bg5 {[%clk 01:17:31]} {[%emt 00:01:44]} Qd7 {[%clk 00:54:07]}
{[%emt 00:02:01]} 14. Qh4 {[%clk 01:15:06]} {[%emt 00:02:55]} h6 {[%clk
00:48:51]} {[%emt 00:05:46]} 15. Bf6 {[%clk 01:02:23]} {[%emt 00:13:13]} Nxf6
{[%clk 00:47:00]} {[%emt 00:02:20]} 16. Qxf6 {[%clk 01:00:34]} {[%emt
00:10:22]} Rf8 {[%clk 00:43:10]} 17. h3 {[%clk 00:36:38]} {[%emt 00:25:50]} Qc6
{[%clk 00:41:19]} 18. Qxc6+ {[%clk 00:36:49]} Bxc6 {[%clk 00:41:42]} 19. Nd2
{[%clk 00:31:35]} {[%emt 00:08:55]} O-O-O {[%clk 00:37:17]} 20. Rad1 {[%clk
00:31:32]} a5 {[%clk 00:32:17]} {[%emt 00:05:28]} 21. Rfe1 {[%clk 00:29:52]}
{[%emt 00:02:10]} Bd5 {[%clk 00:25:10]} {[%emt 00:07:37]} 22. c4 {[%clk
00:26:54]} {[%emt 00:03:28]} Bc6 {[%clk 00:20:50]} {[%emt 00:04:51]} 23. cxb5
{[%clk 00:27:07]} {[%emt 00:00:16]} Bxb5 {[%clk 00:20:18]} {[%emt 00:01:02]} 24.
Nc4 {[%clk 00:19:58]} {[%emt 00:07:39]} Bc5 {[%clk 00:16:26]} {[%emt 00:04:23]}
25. a4 {[%clk 00:17:19]} {[%emt 00:03:08]} Bxc4 {[%clk 00:13:54]} {[%emt
00:03:01]} 26. Bxc4 {[%clk 00:17:42]} {[%emt 00:00:07]} Rd4 {[%clk 00:12:52]}
{[%emt 00:01:33]} 27. Rc1 {[%clk 00:13:58]} {[%emt 00:04:14]} Bb6 {[%clk
00:11:31]} {[%emt 00:01:51]} 28. Re2 {[%clk 00:14:06]} {[%emt 00:00:22]} Kd7
{[%clk 00:10:37]} {[%emt 00:01:24]} 29. Bxf7 {[%clk 00:11:09]} {[%emt
00:03:26]} Rf4 {[%clk 00:10:16]} {[%emt 00:00:52]} 30. e6+ {[%clk 00:11:27]}
{[%emt 00:00:12]} Ke7 {[%clk 00:10:23]} {[%emt 00:00:23]} 31. Rd1 {[%clk
00:09:05]} {[%emt 00:02:53]} Bd4 {[%clk 00:08:08]} {[%emt 00:02:45]} 32. g3
{[%clk 00:09:15]} {[%emt 00:00:19]} 1-0

[Event "Régional Jeunes Occitanie 2024"]
[Site "L'Isle Jourdain, France"]
[Date "2024.02.20"]
[Round "1.1"]
[White "ROUX, Nathan"]
[Black "BAUDEAN, Romeo"]
[Result "1-0"]
[TimeControl "1h30 + 30s/cps"]
[WhiteElo "1810"]
[BlackElo "1199"]

1. d4 {[%clk 01:30:47]} {[%emt 00:00:11]} d5 {[%clk 01:29:58]} {[%emt
00:01:01]} 2. c4 {[%clk 01:31:10]} {[%emt 00:00:09]} Nf6 {[%clk 01:28:57]}
{[%emt 00:01:31]} 3. cxd5 {[%clk 01:30:59]} {[%emt 00:00:40]} Qxd5 {[%clk
01:28:15]} {[%emt 00:01:12]} 4. Nc3 {[%clk 01:31:09]} {[%emt 00:00:19]} Qd7
{[%clk 01:22:51]} {[%emt 00:05:53]} 5. Nf3 {[%clk 01:29:49]} {[%emt 00:01:51]}
e6 {[%clk 01:22:13]} {[%emt 00:11:26]} 6. e4 {[%clk 01:29:53]} c5 {[%clk
01:20:48]} 7. Bb5 {[%clk 01:28:44]} Nc6 {[%clk 01:20:42]} 8. d5 {[%clk
01:29:06]} exd5 {[%clk 01:18:53]} 9. exd5 {[%clk 01:27:56]} a6 {[%clk
01:17:31]} {[%emt 00:00:17]} 10. dxc6 {[%clk 01:25:47]} {[%emt 00:02:38]} Qxd1+
{[%clk 01:16:50]} {[%emt 00:01:11]} 11. Kxd1 {[%clk 01:26:09]} {[%emt
00:00:08]} axb5 {[%clk 01:17:10]} {[%emt 00:00:10]} 12. Nxb5 {[%clk 01:25:39]}
{[%emt 00:00:59]} Nd5 {[%clk 01:16:55]} {[%emt 00:00:45]} 13. Re1+ {[%clk
01:23:20]} {[%emt 00:02:48]} Be7 {[%emt 00:04:07]} 14. cxb7 {[%emt 00:00:23]}
Bxb7 {[%clk 01:03:29]} {[%emt 00:09:27]} 15. Nd6+ {[%clk 01:23:18]} {[%emt
00:00:31]} Kd7 {[%clk 01:01:52]} {[%emt 00:02:08]} 16. Nxb7 {[%clk 01:23:34]}
{[%emt 00:00:14]} Rhb8 {[%clk 01:01:58]} {[%emt 00:00:24]} 17. Rxe7+ {[%clk
01:21:52]} {[%emt 00:02:12]} Nxe7 {[%clk 01:00:40]} {[%emt 00:01:48]} 18. Nxc5+
{[%clk 01:22:04]} {[%emt 00:00:18]} Ke8 {[%clk 00:59:56]} {[%emt 00:01:14]} 19.
Kc2 {[%clk 01:14:45]} {[%emt 00:07:48]} Rc8 {[%clk 00:58:22]} {[%emt 00:02:04]}
20. b4 {[%clk 01:14:52]} {[%emt 00:00:23]} Nd5 {[%clk 00:58:39]} {[%emt
00:00:13]} 21. Bd2 {[%clk 01:15:02]} {[%emt 00:00:19]} Rab8 {[%clk 00:58:39]}
{[%emt 00:00:30]} 22. a3 {[%clk 01:15:09]} {[%emt 00:00:24]} Kf8 {[%clk
00:53:41]} {[%emt 00:05:27]} 23. Ne5 {[%clk 01:13:04]} {[%emt 00:02:35]} Kg8
{[%clk 00:52:54]} {[%emt 00:01:16]} 24. Ned7 {[%clk 01:12:38]} {[%emt
00:00:55]} Rb7 {[%clk 00:50:21]} {[%emt 00:03:04]} 25. Kb3 {[%clk 01:12:45]}
{[%emt 00:00:22]} Rbc7 {[%clk 00:49:52]} {[%emt 00:00:59]} 26. a4 {[%clk
01:12:34]} {[%emt 00:00:42]} Ne7 {[%clk 00:48:58]} {[%emt 00:01:24]} 27. Be3
{[%clk 01:07:13]} {[%emt 00:12:29]} Ra8 {[%clk 00:46:24]} 28. b5 {[%clk
01:06:16]} Ra5 {[%clk 00:44:31]} {[%emt 00:00:15]} 29. b6 {[%clk 01:05:47]}
{[%emt 00:00:59]} Rc8 {[%clk 00:44:19]} {[%emt 00:00:41]} 30. b7 {[%clk
01:06:08]} {[%emt 00:00:10]} Raa8 {[%clk 00:42:11]} {[%emt 00:08:30]} 31.
bxc8=Q+ {[%clk 01:05:22]} Nxc8 {[%clk 00:41:53]} 32. a5 {[%clk 01:05:35]} h6
{[%clk 00:41:52]} 33. a6 {[%clk 01:05:40]} g5 {[%clk 00:41:38]} 34. Nb7 {[%clk
01:05:33]} Kh7 {[%clk 00:41:15]} 35. a7 {[%clk 01:04:58]} {[%emt 00:00:45]} f5
{[%clk 00:39:26]} {[%emt 00:02:20]} 36. Nf6+ {[%clk 01:04:41]} {[%emt
00:12:10]} Kg6 {[%clk 00:39:15]} 37. Nd5 {[%clk 01:05:01]} Ne7 {[%clk
00:38:22]} 38. Nxe7+ {[%clk 01:05:13]} Kf6 {[%clk 00:38:33]} 39. Nd5+ {[%clk
01:05:33]} Ke5 {[%clk 00:38:48]} 40. Nb6 {[%clk 01:05:50]} Re8 {[%clk
00:38:38]} 41. Nd7+ {[%clk 01:05:59]} Ke6 {[%clk 00:38:43]} 42. Nb8 {[%clk
01:06:21]} f4 {[%clk 00:38:43]} 43. a8=Q {[%clk 01:06:27]} fxe3 {[%clk
00:38:30]} 44. Qa6+ {[%clk 01:06:47]} Kf7 {[%clk 00:38:34]} 45. Nd6+ {[%clk
01:07:09]} Ke7 {[%clk 00:37:22]} 46. Nf5+ {[%clk 01:07:19]} Kf8 {[%clk
00:37:24]} 47. Qf6+ {[%clk 01:07:42]} Kg8 {[%clk 00:37:25]} 48. Qg7# {[%clk
01:07:27]} 1-0

[Event "Régional Jeunes Occitanie 2024"]
[Site "L'Isle Jourdain, France"]
[Date "2024.02.20"]
[Round "1.8"]
[White "MARTINEZ, Julien"]
[Black "HOUBART, Alois"]
[Result "1-0"]
[TimeControl "1h30 + 30s/cps"]
[WhiteElo "1556"]
[BlackElo "1099"]

1. d4 {[%clk 01:30:57]} {[%emt 00:00:03]} d5 {[%clk 01:30:36]} {[%emt
00:00:24]} 2. Nf3 {[%clk 01:31:11]} {[%emt 00:00:15]} e6 {[%clk 01:29:55]}
{[%emt 00:01:11]} 3. Bf4 {[%clk 01:31:32]} {[%emt 00:00:09]} Nf6 {[%emt
00:00:55]} 4. e3 {[%emt 00:00:08]} Bd7 {[%clk 01:28:38]} {[%emt 00:00:43]} 5.
Nbd2 {[%clk 01:31:54]} {[%emt 00:00:08]} Be7 {[%clk 01:28:22]} {[%emt
00:00:42]} 6. Bd3 {[%clk 01:32:09]} {[%emt 00:00:18]} O-O {[%clk 01:28:19]}
{[%emt 00:00:28]} 7. Ne5 {[%clk 01:32:16]} {[%emt 00:00:29]} Bd6 {[%clk
01:27:32]} {[%emt 00:01:17]} 8. g4 {[%clk 01:32:22]} {[%emt 00:00:23]} g5
{[%clk 01:26:26]} {[%emt 00:01:36]} 9. Bxg5 {[%clk 01:32:34]} {[%emt 00:00:18]}
Bxe5 {[%clk 01:25:58]} {[%emt 00:00:58]} 10. dxe5 {[%clk 01:32:53]} {[%emt
00:00:10]} Nc6 {[%clk 01:23:02]} {[%emt 00:13:37]} 11. Bxf6 {[%clk 01:32:41]}
Qe8 {[%clk 01:23:02]} 12. Nf3 {[%clk 01:32:22]} Rb8 {[%clk 01:21:33]} 13. Ng5
{[%clk 01:32:43]} h6 14. Bh7# {[%clk 01:32:43]} 1-0

[Event "Régional Jeunes Occitanie 2024"]
[Site "L'Isle Jourdain, France"]
[Date "2024.02.20"]
[Round "1.7"]
[White "HOREN EVRARD, Enolane"]
[Black "BAUER, Pierre"]
[Result "0-1"]
[TimeControl "1h30 + 30s/cps"]
[WhiteElo "1099"]
[BlackElo "1765"]

1. d4 {[%clk 01:30:58]} {[%emt 00:00:01]} Nf6 {[%clk 01:29:54]} {[%emt
00:01:06]} 2. Bf4 {[%clk 01:30:52]} {[%emt 00:00:37]} g6 {[%clk 01:29:06]}
{[%emt 00:01:17]} 3. Nf3 {[%clk 01:30:19]} {[%emt 00:01:03]} Bg7 {[%clk
01:29:27]} {[%emt 00:00:08]} 4. e3 {[%clk 01:30:07]} {[%emt 00:00:42]} O-O
{[%clk 01:29:11]} {[%emt 00:00:46]} 5. Bd3 {[%clk 01:30:29]} {[%emt 00:00:08]}
d6 {[%clk 01:29:30]} {[%emt 00:00:11]} 6. O-O {[%clk 01:29:53]} {[%emt
00:01:06]} Nc6 {[%clk 01:28:48]} {[%emt 00:01:11]} 7. a3 {[%clk 01:28:49]}
{[%emt 00:01:35]} Re8 {[%clk 01:28:23]} {[%emt 00:00:56]} 8. c4 {[%clk
01:28:28]} {[%emt 00:00:51]} e5 {[%clk 01:28:28]} {[%emt 00:00:24]} 9. Bg5
{[%clk 01:27:25]} {[%emt 00:01:32]} e4 {[%clk 01:27:53]} {[%emt 00:10:40]} 10.
Bc2 {[%clk 01:26:53]} exf3 {[%clk 01:28:06]} 11. Qxf3 {[%clk 01:27:16]} h6
{[%clk 01:27:43]} 12. Bh4 {[%clk 01:27:19]} g5 {[%clk 01:27:54]} 13. Bg3 {[%clk
01:27:36]} Bg4 {[%clk 01:28:04]} 14. Qxc6 {[%clk 01:25:48]} bxc6 {[%clk
01:28:12]} 15. Ba4 {[%clk 01:26:03]} Bd7 {[%clk 01:27:00]} 0-1

[Event "Régional Jeunes Occitanie 2024"]
[Site "L'Isle Jourdain, France"]
[Date "2024.02.20"]
[Round "1.3"]
[White "ROUBAUD, Louis-Alexandre"]
[Black "PIERROT, Yohann"]
[Result "0-1"]
[TimeControl "1h30 + 30s/cps"]
[WhiteElo "1293"]
[BlackElo "2053"]

1. d4 {[%clk 01:30:58]} {[%emt 00:00:01]} g6 {[%clk 01:30:47]} {[%emt
00:00:13]} 2. e4 {[%clk 01:30:32]} {[%emt 00:00:56]} Bg7 {[%clk 01:31:15]}
{[%emt 00:00:03]} 3. Nf3 {[%clk 01:30:25]} {[%emt 00:00:36]} d6 {[%clk
01:31:42]} {[%emt 00:00:03]} 4. h3 {[%clk 01:29:48]} {[%emt 00:01:06]} Nf6
{[%clk 01:31:20]} {[%emt 00:00:52]} 5. Nbd2 {[%clk 01:29:12]} {[%emt 00:01:06]}
Nc6 {[%clk 01:30:37]} {[%emt 00:01:12]} 6. c3 {[%clk 01:29:22]} {[%emt
00:00:20]} O-O {[%clk 01:30:34]} {[%emt 00:00:32]} 7. Bc4 {[%clk 01:26:31]}
{[%emt 00:03:22]} e5 {[%clk 01:29:55]} {[%emt 00:01:09]} 8. dxe5 {[%clk
01:26:37]} {[%emt 00:00:24]} dxe5 {[%clk 01:30:02]} {[%emt 00:00:23]} 9. O-O
{[%clk 01:26:21]} {[%emt 00:00:46]} Qe7 {[%clk 01:30:07]} {[%emt 00:00:25]} 10.
Qe2 {[%clk 01:24:14]} {[%emt 00:10:44]} Be6 {[%clk 01:26:25]} 11. Bxe6 {[%clk
01:22:52]} Qxe6 {[%clk 01:26:44]} 12. Nc4 {[%clk 01:22:01]} h6 {[%clk
01:25:08]} {[%emt 00:01:35]} 13. b3 {[%clk 01:20:06]} {[%emt 00:02:24]} b5
{[%clk 01:23:22]} {[%emt 00:02:17]} 14. Ncd2 {[%clk 01:19:01]} {[%emt
00:01:35]} a6 {[%clk 01:21:44]} {[%emt 00:02:08]} 15. Bb2 {[%clk 01:17:35]}
{[%emt 00:01:56]} Nh5 {[%clk 01:21:27]} {[%emt 00:00:47]} 16. Qe3 {[%clk
01:15:21]} {[%emt 00:10:08]} Rfd8 {[%clk 01:20:39]} 17. Rad1 {[%clk 01:15:10]}
a5 {[%clk 01:16:34]} 18. c4 {[%clk 01:10:03]} {[%emt 00:04:47]} Nb4 {[%clk
01:15:06]} {[%emt 00:01:59]} 19. a3 {[%clk 01:09:31]} {[%emt 00:01:02]} Nd3
{[%clk 01:12:06]} {[%emt 00:03:30]} 20. Ba1 {[%clk 01:06:22]} {[%emt 00:03:40]}
Ndf4 {[%clk 01:11:37]} {[%emt 00:00:59]} 21. cxb5 {[%clk 01:00:24]} {[%emt
00:06:28]} Rd3 {[%clk 01:10:03]} {[%emt 00:02:03]} 22. Qc5 {[%clk 00:57:07]}
{[%emt 00:03:48]} Nxg2 {[%clk 01:09:22]} {[%emt 00:01:12]} 23. Bxe5 {[%clk
00:55:53]} {[%emt 00:01:44]} Ngf4 {[%clk 01:05:19]} {[%emt 00:04:32]} 24. Bxf4
{[%clk 00:50:18]} {[%emt 00:14:10]} Nxf4 {[%clk 01:05:21]} 25. Qxc7 {[%clk
00:49:58]} g5 {[%clk 01:04:34]} 26. Qc6 {[%clk 00:49:04]} Qxh3 {[%clk
01:04:29]} 27. Qxa8+ {[%clk 00:48:47]} Kh7 {[%clk 01:04:54]} 28. Nxg5+ {[%clk
00:48:52]} hxg5 {[%clk 01:05:23]} 29. e5 {[%clk 00:48:53]} Ne2# {[%clk
01:05:09]} 0-1